[Event "Titled Tuesday Blitz June 20 Early 2023"]
[White "Drozdowski, Kacper"]
[Black "Sviridov, Valery"]
[WhiteFideId "1136720"]
[BlackFideId "4120680"]
[WhiteElo "2497"]
[BlackElo "2457"]
[Result "1-0"]
[Round "8"]
[TimeControl "180+2"]
[Date "2023.06.20"]
[WhiteClock "0:00:22"]
[BlackClock "0:01:01"]
[Board "13"]

1. e4 {[%clk 0:03:00]}  Nf6 {[%clk 0:02:54]} 2. e5 {[%clk 0:03:00]}  Nd5 {[%clk 0:02:55]} 3. d4 {[%clk 0:03:00]}  d6 {[%clk 0:02:54]} 4. Nf3 {[%clk 0:02:59]}  dxe5 {[%clk 0:02:53]} 5. Nxe5 {[%clk 0:02:59]}  c6 {[%clk 0:02:54]} 6. Be2 {[%clk 0:02:58]}  Bf5 {[%clk 0:02:53]} 7. O-O {[%clk 0:02:57]}  Nd7 {[%clk 0:02:53]} 8. Nf3 {[%clk 0:02:54]}  e6 {[%clk 0:02:53]} 9. a3 {[%clk 0:02:50]}  Be7 {[%clk 0:02:50]} 10. c4 {[%clk 0:02:49]}  N5b6 {[%clk 0:02:51]} 11. Nc3 {[%clk 0:02:49]}  O-O {[%clk 0:02:51]} 12. Be3 {[%clk 0:02:47]}  Qc7 {[%clk 0:02:50]} 13. h3 {[%clk 0:02:46]}  Rad8 {[%clk 0:02:49]} 14. Qc1 {[%clk 0:02:20]}  e5 {[%clk 0:02:35]} 15. Rd1 {[%clk 0:02:08]}  exd4 {[%clk 0:02:12]} 16. Nxd4 {[%clk 0:02:06]}  Bg6 {[%clk 0:02:12]} 17. Bf4 {[%clk 0:01:56]}  Qc8 {[%clk 0:02:13]} 18. b4 {[%clk 0:01:46]}  Rfe8 {[%clk 0:02:09]} 19. c5 {[%clk 0:01:41]}  Na8 {[%clk 0:02:01]} 20. Bg4 {[%clk 0:01:39]}  h5 {[%clk 0:02:00]} 21. Bf5 {[%clk 0:01:34]}  Bxf5 {[%clk 0:01:48]} 22. Nxf5 {[%clk 0:01:35]}  Nf6 {[%clk 0:01:49]} 23. Rxd8 {[%clk 0:01:21]}  Qxd8 {[%clk 0:01:43]} 24. Qc2 {[%clk 0:01:15]}  Nc7 {[%clk 0:01:42]} 25. Bd6 {[%clk 0:01:07]}  Ncd5 {[%clk 0:01:36]} 26. Nxd5 {[%clk 0:01:04]}  Nxd5 {[%clk 0:01:37]} 27. Bxe7 {[%clk 0:00:55]}  Nxe7 {[%clk 0:01:38]} 28. Nd6 {[%clk 0:00:55]}  Rf8 {[%clk 0:01:34]} 29. Nxb7 {[%clk 0:00:54]}  Qd4 {[%clk 0:01:34]} 30. Rd1 {[%clk 0:00:54]}  Qf4 {[%clk 0:01:34]} 31. Nd6 {[%clk 0:00:52]}  Rd8 {[%clk 0:01:26]} 32. Re1 {[%clk 0:00:51]}  Qf6 {[%clk 0:01:14]} 33. Qe2 {[%clk 0:00:49]}  Nd5 {[%clk 0:01:12]} 34. Qxh5 {[%clk 0:00:48]}  a5 {[%clk 0:01:06]} 35. b5 {[%clk 0:00:34]}  g6 {[%clk 0:01:02]} 36. Qe5 {[%clk 0:00:29]}  Qxe5 {[%clk 0:01:01]} 37. Rxe5 {[%clk 0:00:29]}  f6 {[%clk 0:01:01]} 38. Rxd5 {[%clk 0:00:22]} 1-0


[Site "https://www.chess.com"]

[Event "Titled Tuesday Blitz June 20 Early 2023"]
[White "Makarian, Rudik"]
[Black "Timofeev, Artyom"]
[WhiteFideId "44105681"]
[BlackFideId "4140419"]
[WhiteElo "2451"]
[BlackElo "2570"]
[Result "1/2-1/2"]
[Round "8"]
[TimeControl "180+2"]
[Date "2023.06.20"]
[WhiteClock "0:00:07"]
[BlackClock "0:00:04"]
[Board "15"]

1. d4 {[%clk 0:03:00]}  Nf6 {[%clk 0:02:59]} 2. c4 {[%clk 0:03:01]}  b6 {[%clk 0:02:58]} 3. Nf3 {[%clk 0:02:57]}  Bb7 {[%clk 0:02:57]} 4. g3 {[%clk 0:02:57]}  g6 {[%clk 0:02:52]} 5. Bg2 {[%clk 0:02:57]}  Bg7 {[%clk 0:02:52]} 6. O-O {[%clk 0:02:58]}  O-O {[%clk 0:02:52]} 7. d5 {[%clk 0:02:57]}  c6 {[%clk 0:02:42]} 8. Nc3 {[%clk 0:02:56]}  cxd5 {[%clk 0:02:42]} 9. cxd5 {[%clk 0:02:57]}  d6 {[%clk 0:02:27]} 10. Nd4 {[%clk 0:02:56]}  Qd7 {[%clk 0:02:20]} 11. Bf4 {[%clk 0:02:39]}  Na6 {[%clk 0:02:13]} 12. Rc1 {[%clk 0:02:38]}  Rac8 {[%clk 0:02:06]} 13. Nc6 {[%clk 0:02:34]}  Nxd5 {[%clk 0:01:50]} 14. Nxd5 {[%clk 0:02:32]}  Bxc6 {[%clk 0:01:51]} 15. Rxc6 {[%clk 0:02:22]}  Rxc6 {[%clk 0:01:47]} 16. Nxe7+ {[%clk 0:02:23]}  Qxe7 {[%clk 0:01:46]} 17. Bxc6 {[%clk 0:02:24]}  Be5 {[%clk 0:01:43]} 18. Bh6 {[%clk 0:02:07]}  Rc8 {[%clk 0:01:42]} 19. Bb5 {[%clk 0:01:51]}  Nc5 {[%clk 0:01:37]} 20. Qd2 {[%clk 0:01:37]}  Bg7 {[%clk 0:01:35]} 21. Bxg7 {[%clk 0:01:28]}  Kxg7 {[%clk 0:01:34]} 22. e3 {[%clk 0:01:28]}  Ne4 {[%clk 0:01:25]} 23. Qe2 {[%clk 0:01:25]}  Qe5 {[%clk 0:01:20]} 24. Rd1 {[%clk 0:01:17]}  a5 {[%clk 0:01:13]} 25. a4 {[%clk 0:01:14]}  Rc5 {[%clk 0:01:11]} 26. Kg2 {[%clk 0:01:12]}  Rd5 {[%clk 0:01:07]} 27. Rxd5 {[%clk 0:00:59]}  Qxd5 {[%clk 0:01:07]} 28. Qf3 {[%clk 0:01:00]}  Qe5 {[%clk 0:01:06]} 29. Bc4 {[%clk 0:00:56]}  d5 {[%clk 0:01:05]} 30. Ba2 {[%clk 0:00:47]}  Nf6 {[%clk 0:01:03]} 31. g4 {[%clk 0:00:42]}  h6 {[%clk 0:00:59]} 32. h4 {[%clk 0:00:41]}  d4 {[%clk 0:00:43]} 33. exd4 {[%clk 0:00:36]}  Qxd4 {[%clk 0:00:44]} 34. g5 {[%clk 0:00:35]}  hxg5 {[%clk 0:00:43]} 35. hxg5 {[%clk 0:00:36]}  Qg4+ {[%clk 0:00:41]} 36. Qxg4 {[%clk 0:00:36]}  Nxg4 {[%clk 0:00:41]} 37. Kf3 {[%clk 0:00:37]}  f5 {[%clk 0:00:36]} 38. gxf6+ {[%clk 0:00:25]}  Nxf6 {[%clk 0:00:35]} 39. Kf4 {[%clk 0:00:26]}  Kf8 {[%clk 0:00:35]} 40. Bb1 {[%clk 0:00:24]}  Kf7 {[%clk 0:00:30]} 41. f3 {[%clk 0:00:23]}  Nd7 {[%clk 0:00:27]} 42. Bc2 {[%clk 0:00:19]}  Kf6 {[%clk 0:00:26]} 43. Ke4 {[%clk 0:00:19]}  Ke6 {[%clk 0:00:26]} 44. f4 {[%clk 0:00:17]}  Kd6 {[%clk 0:00:18]} 45. Kf3 {[%clk 0:00:15]}  Nf8 {[%clk 0:00:17]} 46. Kg4 {[%clk 0:00:14]}  Ke7 {[%clk 0:00:17]} 47. Kg5 {[%clk 0:00:14]}  Kf7 {[%clk 0:00:17]} 48. Kg4 {[%clk 0:00:10]}  Kf6 {[%clk 0:00:17]} 49. Kf3 {[%clk 0:00:10]}  Ke6 {[%clk 0:00:17]} 50. Ke4 {[%clk 0:00:10]}  Kd6 {[%clk 0:00:17]} 51. Bb3 {[%clk 0:00:09]}  Nd7 {[%clk 0:00:16]} 52. Kd4 {[%clk 0:00:08]}  Nf8 {[%clk 0:00:12]} 53. Bf7 {[%clk 0:00:07]}  Ke7 {[%clk 0:00:13]} 54. Bd5 {[%clk 0:00:05]}  Kd6 {[%clk 0:00:13]} 55. Be4 {[%clk 0:00:06]}  Ne6+ {[%clk 0:00:12]} 56. Ke3 {[%clk 0:00:06]}  Nf8 {[%clk 0:00:12]} 57. b3 {[%clk 0:00:05]}  Ke6 {[%clk 0:00:11]} 58. Kd4 {[%clk 0:00:05]}  Kd6 {[%clk 0:00:11]} 59. Kc4 {[%clk 0:00:06]}  Ne6 {[%clk 0:00:11]} 60. Kb5 {[%clk 0:00:05]}  Kc7 {[%clk 0:00:09]} 61. Bxg6 {[%clk 0:00:06]}  Nxf4 {[%clk 0:00:09]} 62. Bf7 {[%clk 0:00:06]}  Ne2 {[%clk 0:00:08]} 63. b4 {[%clk 0:00:06]}  axb4 {[%clk 0:00:07]} 64. Kxb4 {[%clk 0:00:06]}  Nd4 {[%clk 0:00:06]} 65. Bd5 {[%clk 0:00:06]}  Nf5 {[%clk 0:00:05]} 66. a5 {[%clk 0:00:06]}  bxa5+ {[%clk 0:00:04]} 67. Kxa5 {[%clk 0:00:07]} 1/2-1/2


[Site "https://www.chess.com"]

[Event "Titled Tuesday Blitz June 20 Early 2023"]
[White "Hakobyan, Aram"]
[Black "Vakhlamov, Igor L."]
[WhiteFideId "13306677"]
[BlackFideId "24126748"]
[WhiteElo "2584"]
[BlackElo "2407"]
[Result "1-0"]
[Round "8"]
[TimeControl "180+2"]
[Date "2023.06.20"]
[WhiteClock "0:00:06"]
[BlackClock "0:00:00"]
[Board "16"]

1. d4 {[%clk 0:03:00]}  d5 {[%clk 0:03:00]} 2. c4 {[%clk 0:03:00]}  e6 {[%clk 0:03:01]} 3. Nc3 {[%clk 0:02:55]}  c5 {[%clk 0:03:00]} 4. e3 {[%clk 0:02:54]}  Nf6 {[%clk 0:03:00]} 5. Nf3 {[%clk 0:02:53]}  Nc6 {[%clk 0:03:01]} 6. a3 {[%clk 0:02:53]}  Ne4 {[%clk 0:03:01]} 7. Bd3 {[%clk 0:02:52]}  Nxc3 {[%clk 0:03:01]} 8. bxc3 {[%clk 0:02:53]}  Be7 {[%clk 0:03:01]} 9. O-O {[%clk 0:02:53]}  dxc4 {[%clk 0:02:56]} 10. Bxc4 {[%clk 0:02:53]}  O-O {[%clk 0:02:57]} 11. e4 {[%clk 0:02:53]}  Qc7 {[%clk 0:02:56]} 12. Be3 {[%clk 0:02:50]}  Na5 {[%clk 0:02:44]} 13. Bd3 {[%clk 0:02:49]}  cxd4 {[%clk 0:02:36]} 14. cxd4 {[%clk 0:02:49]}  Nc4 {[%clk 0:02:36]} 15. e5 {[%clk 0:02:11]}  Nxe3 {[%clk 0:01:52]} 16. fxe3 {[%clk 0:02:11]}  Bd7 {[%clk 0:01:48]} 17. Qb1 {[%clk 0:01:57]}  h6 {[%clk 0:01:43]} 18. Bh7+ {[%clk 0:01:52]}  Kh8 {[%clk 0:01:42]} 19. Be4 {[%clk 0:01:53]}  Rab8 {[%clk 0:01:33]} 20. Rc1 {[%clk 0:01:50]}  Qa5 {[%clk 0:01:34]} 21. Qb2 {[%clk 0:01:37]}  b5 {[%clk 0:01:12]} 22. Bc6 {[%clk 0:01:30]}  Bxc6 {[%clk 0:01:07]} 23. Rxc6 {[%clk 0:01:30]}  Rfc8 {[%clk 0:01:07]} 24. Qc1 {[%clk 0:01:22]}  Rxc6 {[%clk 0:00:59]} 25. Qxc6 {[%clk 0:01:23]}  Qb6 {[%clk 0:00:58]} 26. Qd7 {[%clk 0:00:48]}  Qb7 {[%clk 0:00:54]} 27. Qxb7 {[%clk 0:00:47]}  Rxb7 {[%clk 0:00:55]} 28. Nd2 {[%clk 0:00:37]}  Rc7 {[%clk 0:00:54]} 29. a4 {[%clk 0:00:35]}  Rc2 {[%clk 0:00:44]} 30. Nb3 {[%clk 0:00:27]}  Rc3 {[%clk 0:00:42]} 31. Na5 {[%clk 0:00:27]}  b4 {[%clk 0:00:40]} 32. Rb1 {[%clk 0:00:24]}  f5 {[%clk 0:00:25]} 33. exf6 {[%clk 0:00:22]}  gxf6 {[%clk 0:00:26]} 34. Kf2 {[%clk 0:00:22]}  Rc2+ {[%clk 0:00:23]} 35. Kf3 {[%clk 0:00:22]}  Kg7 {[%clk 0:00:23]} 36. Nb3 {[%clk 0:00:21]}  f5 {[%clk 0:00:22]} 37. a5 {[%clk 0:00:21]}  Kf6 {[%clk 0:00:19]} 38. Nc1 {[%clk 0:00:16]}  Rc3 {[%clk 0:00:18]} 39. Nb3 {[%clk 0:00:15]}  Bd6 {[%clk 0:00:16]} 40. h3 {[%clk 0:00:14]}  h5 {[%clk 0:00:16]} 41. Ke2 {[%clk 0:00:13]}  Rc2+ {[%clk 0:00:16]} 42. Kf3 {[%clk 0:00:12]}  Rc3 {[%clk 0:00:16]} 43. Ke2 {[%clk 0:00:08]}  Kg5 {[%clk 0:00:16]} 44. Nd2 {[%clk 0:00:06]}  Ra3 {[%clk 0:00:12]} 45. Nc4 {[%clk 0:00:04]}  Ra2+ {[%clk 0:00:13]} 46. Kf3 {[%clk 0:00:05]}  Be7 {[%clk 0:00:12]} 47. g3 {[%clk 0:00:04]}  Rc2 {[%clk 0:00:09]} 48. Ne5 {[%clk 0:00:04]}  Kf6 {[%clk 0:00:08]} 49. a6 {[%clk 0:00:03]}  Ra2 {[%clk 0:00:07]} 50. Rc1 {[%clk 0:00:02]}  Rxa6 {[%clk 0:00:08]} 51. Rc7 {[%clk 0:00:03]}  Rb6 {[%clk 0:00:07]} 52. Nd7+ {[%clk 0:00:03]}  Kf7 {[%clk 0:00:07]} 53. Nxb6 {[%clk 0:00:04]}  axb6 {[%clk 0:00:07]} 54. Rb7 {[%clk 0:00:05]}  Kf6 {[%clk 0:00:06]} 55. Rxb6 {[%clk 0:00:05]}  Kf7 {[%clk 0:00:06]} 56. Rb7 {[%clk 0:00:05]}  Kf6 {[%clk 0:00:06]} 57. g4 {[%clk 0:00:03]}  hxg4+ {[%clk 0:00:06]} 58. hxg4 {[%clk 0:00:04]}  fxg4+ {[%clk 0:00:06]} 59. Kxg4 {[%clk 0:00:04]}  Bf8 {[%clk 0:00:06]} 60. Kf3 {[%clk 0:00:05]}  e5 {[%clk 0:00:06]} 61. d5 {[%clk 0:00:04]}  Bd6 {[%clk 0:00:04]} 62. e4 {[%clk 0:00:05]}  Bf8 {[%clk 0:00:03]} 63. Ke2 {[%clk 0:00:06]}  Kg5 {[%clk 0:00:00]} 64. Kd3 {[%clk 0:00:06]} 1-0


[Site "https://www.chess.com"]

[Event "Titled Tuesday Blitz June 20 Early 2023"]
[White "Chigaev, Maksim"]
[Black "Nihal Sarin"]
[WhiteFideId "4108116"]
[BlackFideId "25092340"]
[WhiteElo "2561"]
[BlackElo "2689"]
[Result "1-0"]
[Round "8"]
[TimeControl "180+2"]
[Date "2023.06.20"]
[WhiteClock "0:00:02"]
[BlackClock "0:00:00"]
[Board "17"]

1. e4 {[%clk 0:03:00]}  e5 {[%clk 0:02:47]} 2. Nf3 {[%clk 0:02:59]}  Nc6 {[%clk 0:02:48]} 3. Bc4 {[%clk 0:02:58]}  Nf6 {[%clk 0:02:47]} 4. d3 {[%clk 0:02:59]}  Bc5 {[%clk 0:02:47]} 5. c3 {[%clk 0:02:59]}  O-O {[%clk 0:02:48]} 6. Bg5 {[%clk 0:02:58]}  Be7 {[%clk 0:02:45]} 7. Nbd2 {[%clk 0:02:57]}  h6 {[%clk 0:02:35]} 8. Bh4 {[%clk 0:02:56]}  d6 {[%clk 0:02:35]} 9. a4 {[%clk 0:02:55]}  a6 {[%clk 0:02:34]} 10. a5 {[%clk 0:02:54]}  Nh5 {[%clk 0:02:30]} 11. g3 {[%clk 0:02:54]}  Bxh4 {[%clk 0:02:25]} 12. Nxh4 {[%clk 0:02:53]}  Nf6 {[%clk 0:02:26]} 13. O-O {[%clk 0:02:36]}  Re8 {[%clk 0:02:19]} 14. Qb3 {[%clk 0:02:30]}  Qe7 {[%clk 0:02:01]} 15. f4 {[%clk 0:02:20]}  exf4 {[%clk 0:01:52]} 16. Ng6 {[%clk 0:02:13]}  Qd7 {[%clk 0:01:51]} 17. Rxf4 {[%clk 0:02:13]}  Ne5 {[%clk 0:01:44]} 18. Nxe5 {[%clk 0:02:10]}  dxe5 {[%clk 0:01:45]} 19. Rxf6 {[%clk 0:02:10]}  gxf6 {[%clk 0:01:46]} 20. Rf1 {[%clk 0:02:10]}  Kg7 {[%clk 0:01:44]} 21. Nf3 {[%clk 0:02:06]}  Re7 {[%clk 0:01:36]} 22. Nh4 {[%clk 0:01:48]}  Qd6 {[%clk 0:01:36]} 23. Qd1 {[%clk 0:01:33]}  Bd7 {[%clk 0:01:23]} 24. Qh5 {[%clk 0:01:27]}  Rh8 {[%clk 0:01:22]} 25. Kg2 {[%clk 0:01:17]}  b5 {[%clk 0:00:57]} 26. axb6 {[%clk 0:01:08]}  cxb6 {[%clk 0:00:58]} 27. Bxa6 {[%clk 0:01:07]}  Kf8 {[%clk 0:00:34]} 28. Bc4 {[%clk 0:01:06]}  b5 {[%clk 0:00:35]} 29. Ng6+ {[%clk 0:00:33]}  Ke8 {[%clk 0:00:14]} 30. Bxf7+ {[%clk 0:00:21]}  Kxf7 {[%clk 0:00:06]} 31. Nxh8+ {[%clk 0:00:22]}  Kg8 {[%clk 0:00:02]} 32. Qxh6 {[%clk 0:00:06]}  Rh7 {[%clk 0:00:02]} 33. Qg6+ {[%clk 0:00:05]}  Kxh8 {[%clk 0:00:02]} 34. Rxf6 {[%clk 0:00:05]}  Qe7 {[%clk 0:00:02]} 35. h4 {[%clk 0:00:05]}  Be8 {[%clk 0:00:02]} 36. Qg5 {[%clk 0:00:04]}  Bf7 {[%clk 0:00:02]} 37. Rf5 {[%clk 0:00:04]}  Qxg5 {[%clk 0:00:02]} 38. Rxg5 {[%clk 0:00:05]}  Bb3 {[%clk 0:00:02]} 39. Rxe5 {[%clk 0:00:05]}  Bc2 {[%clk 0:00:02]} 40. d4 {[%clk 0:00:06]}  b4 {[%clk 0:00:03]} 41. cxb4 {[%clk 0:00:05]}  Rb7 {[%clk 0:00:03]} 42. b5 {[%clk 0:00:06]}  Bd3 {[%clk 0:00:04]} 43. Kf3 {[%clk 0:00:05]}  Bxb5 {[%clk 0:00:04]} 44. Kf4 {[%clk 0:00:06]}  Bc4 {[%clk 0:00:05]} 45. Rc5 {[%clk 0:00:05]}  Ba2 {[%clk 0:00:04]} 46. d5 {[%clk 0:00:06]}  Rxb2 {[%clk 0:00:05]} 47. Ke5 {[%clk 0:00:06]}  Re2 {[%clk 0:00:03]} 48. Ra5 {[%clk 0:00:07]}  Bb1 {[%clk 0:00:03]} 49. Ra4 {[%clk 0:00:07]}  Kg7 {[%clk 0:00:04]} 50. g4 {[%clk 0:00:06]}  Kf7 {[%clk 0:00:04]} 51. Kf5 {[%clk 0:00:05]}  Rf2+ {[%clk 0:00:04]} 52. Ke5 {[%clk 0:00:04]}  Rh2 {[%clk 0:00:04]} 53. Kd6 {[%clk 0:00:02]}  Rxh4 {[%clk 0:00:03]} 54. e5 {[%clk 0:00:03]}  Kg6 {[%clk 0:00:03]} 55. e6 {[%clk 0:00:03]}  Rh8 {[%clk 0:00:03]} 56. Ke7 {[%clk 0:00:02]}  Bc2 {[%clk 0:00:02]} 57. Rf4 {[%clk 0:00:02]}  Bb3 {[%clk 0:00:02]} 58. d6 {[%clk 0:00:02]}  Rh7+ {[%clk 0:00:02]} 59. Rf7 {[%clk 0:00:02]}  Rh3 {[%clk 0:00:02]} 60. d7 {[%clk 0:00:02]}  Bxe6 {[%clk 0:00:02]} 61. Rf6+ {[%clk 0:00:02]}  Kg7 {[%clk 0:00:00]} 62. Rxe6 {[%clk 0:00:02]} 1-0


[Site "https://www.chess.com"]

[Event "Titled Tuesday Blitz June 20 Early 2023"]
[White "Sadhwani, Raunak"]
[Black "Pakleza, Zbigniew"]
[WhiteFideId "35093487"]
[BlackFideId "1119290"]
[WhiteElo "2631"]
[BlackElo "2410"]
[Result "1-0"]
[Round "8"]
[TimeControl "180+2"]
[Date "2023.06.20"]
[WhiteClock "0:00:14"]
[BlackClock "0:00:02"]
[Board "18"]

1. Nf3 {[%clk 0:03:00]}  d5 {[%clk 0:02:59]} 2. b3 {[%clk 0:02:59]}  Nf6 {[%clk 0:02:59]} 3. Bb2 {[%clk 0:02:58]}  Bf5 {[%clk 0:03:00]} 4. e3 {[%clk 0:02:57]}  e6 {[%clk 0:03:00]} 5. d4 {[%clk 0:02:55]}  Be7 {[%clk 0:02:58]} 6. Bd3 {[%clk 0:02:50]}  Bg6 {[%clk 0:02:57]} 7. O-O {[%clk 0:02:46]}  Nbd7 {[%clk 0:02:57]} 8. c4 {[%clk 0:02:46]}  c6 {[%clk 0:02:52]} 9. Qc2 {[%clk 0:02:46]}  Bxd3 {[%clk 0:02:44]} 10. Qxd3 {[%clk 0:02:47]}  Ne4 {[%clk 0:02:44]} 11. Nfd2 {[%clk 0:02:43]}  Nxd2 {[%clk 0:02:37]} 12. Nxd2 {[%clk 0:02:42]}  Nf6 {[%clk 0:02:35]} 13. e4 {[%clk 0:02:38]}  dxe4 {[%clk 0:02:35]} 14. Nxe4 {[%clk 0:02:39]}  Nxe4 {[%clk 0:02:36]} 15. Qxe4 {[%clk 0:02:40]}  O-O {[%clk 0:02:35]} 16. Rad1 {[%clk 0:02:40]}  Re8 {[%clk 0:02:31]} 17. Rd3 {[%clk 0:02:39]}  Qa5 {[%clk 0:02:25]} 18. a4 {[%clk 0:02:38]}  Bf6 {[%clk 0:02:15]} 19. Rfd1 {[%clk 0:02:37]}  Qf5 {[%clk 0:02:08]} 20. Qxf5 {[%clk 0:02:33]}  exf5 {[%clk 0:02:09]} 21. Kf1 {[%clk 0:02:33]}  Rad8 {[%clk 0:02:05]} 22. Bc3 {[%clk 0:02:31]}  Rd7 {[%clk 0:02:01]} 23. d5 {[%clk 0:02:27]}  Bxc3 {[%clk 0:01:59]} 24. Rxc3 {[%clk 0:02:28]}  cxd5 {[%clk 0:01:37]} 25. Rxd5 {[%clk 0:02:02]}  Rde7 {[%clk 0:01:37]} 26. g3 {[%clk 0:01:59]}  g6 {[%clk 0:01:32]} 27. Kg2 {[%clk 0:01:47]}  Kg7 {[%clk 0:01:31]} 28. a5 {[%clk 0:01:44]}  Kf6 {[%clk 0:01:25]} 29. c5 {[%clk 0:01:35]}  Rc7 {[%clk 0:01:15]} 30. b4 {[%clk 0:01:08]}  Re4 {[%clk 0:00:53]} 31. b5 {[%clk 0:01:00]}  Rb4 {[%clk 0:00:54]} 32. b6 {[%clk 0:00:48]}  axb6 {[%clk 0:00:54]} 33. Rd6+ {[%clk 0:00:48]}  Ke7 {[%clk 0:00:47]} 34. Re3+ {[%clk 0:00:44]}  Re4 {[%clk 0:00:38]} 35. cxb6 {[%clk 0:00:45]}  Rxe3 {[%clk 0:00:13]} 36. bxc7 {[%clk 0:00:38]}  Rc3 {[%clk 0:00:14]} 37. Rb6 {[%clk 0:00:36]}  Rxc7 {[%clk 0:00:14]} 38. Kf3 {[%clk 0:00:34]}  Kf8 {[%clk 0:00:08]} 39. Rb5 {[%clk 0:00:31]}  Kg7 {[%clk 0:00:07]} 40. Ke3 {[%clk 0:00:29]}  Rd7 {[%clk 0:00:06]} 41. h4 {[%clk 0:00:20]}  h5 {[%clk 0:00:05]} 42. Kf4 {[%clk 0:00:19]}  Kf6 {[%clk 0:00:05]} 43. Rb6+ {[%clk 0:00:19]}  Kg7 {[%clk 0:00:05]} 44. Ke5 {[%clk 0:00:20]}  Kg8 {[%clk 0:00:02]} 45. Rd6 {[%clk 0:00:16]}  Re7+ {[%clk 0:00:02]} 46. Kd5 {[%clk 0:00:16]}  Rc7 {[%clk 0:00:03]} 47. Rb6 {[%clk 0:00:13]}  Kg7 {[%clk 0:00:03]} 48. Kd6 {[%clk 0:00:13]}  Rc2 {[%clk 0:00:03]} 49. Rxb7 {[%clk 0:00:13]}  Rxf2 {[%clk 0:00:04]} 50. Rb5 {[%clk 0:00:12]}  Rf3 {[%clk 0:00:02]} 51. Kc6 {[%clk 0:00:12]}  Rxg3 {[%clk 0:00:02]} 52. a6 {[%clk 0:00:12]}  Ra3 {[%clk 0:00:02]} 53. Kb6 {[%clk 0:00:13]}  Rxa6+ {[%clk 0:00:01]} 54. Kxa6 {[%clk 0:00:13]}  f4 {[%clk 0:00:01]} 55. Ka5 {[%clk 0:00:13]}  f6 {[%clk 0:00:01]} 56. Kb4 {[%clk 0:00:13]}  g5 {[%clk 0:00:02]} 57. hxg5 {[%clk 0:00:13]}  h4 {[%clk 0:00:03]} 58. gxf6+ {[%clk 0:00:12]}  Kxf6 {[%clk 0:00:04]} 59. Kc3 {[%clk 0:00:12]}  h3 {[%clk 0:00:04]} 60. Rh5 {[%clk 0:00:12]}  Kg6 {[%clk 0:00:03]} 61. Rxh3 {[%clk 0:00:13]}  Kg5 {[%clk 0:00:04]} 62. Kd2 {[%clk 0:00:13]}  Kg4 {[%clk 0:00:05]} 63. Ra3 {[%clk 0:00:13]}  f3 {[%clk 0:00:02]} 64. Ke1 {[%clk 0:00:14]} 1-0


[Site "https://www.chess.com"]

[Event "Titled Tuesday Blitz June 20 Early 2023"]
[White "Seo, Jung Min"]
[Black "Terry, Renato"]
[WhiteFideId "1734687"]
[BlackFideId "3803457"]
[WhiteElo "2468"]
[BlackElo "2575"]
[Result "0-1"]
[Round "8"]
[TimeControl "180+2"]
[Date "2023.06.20"]
[WhiteClock "0:00:00"]
[BlackClock "0:00:06"]
[Board "20"]

1. d4 {[%clk 0:03:00]}  e6 {[%clk 0:03:00]} 2. c4 {[%clk 0:03:00]}  Bb4+ {[%clk 0:03:00]} 3. Bd2 {[%clk 0:02:58]}  Qe7 {[%clk 0:02:59]} 4. a3 {[%clk 0:02:55]}  Bxd2+ {[%clk 0:02:59]} 5. Qxd2 {[%clk 0:02:56]}  Nf6 {[%clk 0:02:59]} 6. Nc3 {[%clk 0:02:56]}  d6 {[%clk 0:02:59]} 7. e4 {[%clk 0:02:46]}  O-O {[%clk 0:02:58]} 8. Nf3 {[%clk 0:02:35]}  e5 {[%clk 0:02:58]} 9. d5 {[%clk 0:02:28]}  a5 {[%clk 0:02:58]} 10. b3 {[%clk 0:02:28]}  Bg4 {[%clk 0:02:57]} 11. Be2 {[%clk 0:02:26]}  Na6 {[%clk 0:02:58]} 12. h3 {[%clk 0:02:26]}  Bh5 {[%clk 0:02:56]} 13. Qe3 {[%clk 0:02:23]}  Bxf3 {[%clk 0:02:48]} 14. Bxf3 {[%clk 0:02:21]}  Nc5 {[%clk 0:02:47]} 15. Rb1 {[%clk 0:02:21]}  a4 {[%clk 0:02:33]} 16. b4 {[%clk 0:02:17]}  Nb3 {[%clk 0:02:32]} 17. O-O {[%clk 0:02:12]}  Nd4 {[%clk 0:02:32]} 18. Bd1 {[%clk 0:02:11]}  h6 {[%clk 0:02:30]} 19. Ne2 {[%clk 0:01:45]}  Rfe8 {[%clk 0:02:21]} 20. Re1 {[%clk 0:01:43]}  Nxe2+ {[%clk 0:01:55]} 21. Bxe2 {[%clk 0:01:43]}  b6 {[%clk 0:01:51]} 22. Rbc1 {[%clk 0:01:40]}  Rec8 {[%clk 0:01:37]} 23. Bd3 {[%clk 0:01:35]}  c5 {[%clk 0:01:33]} 24. dxc6 {[%clk 0:01:10]}  Rxc6 {[%clk 0:01:33]} 25. Be2 {[%clk 0:01:02]}  Rac8 {[%clk 0:01:16]} 26. Rcd1 {[%clk 0:01:01]}  Kh7 {[%clk 0:01:09]} 27. Rd2 {[%clk 0:01:00]}  b5 {[%clk 0:00:46]} 28. cxb5 {[%clk 0:00:59]}  Rc3 {[%clk 0:00:47]} 29. Rd3 {[%clk 0:00:57]}  R3c4 {[%clk 0:00:48]} 30. Bf3 {[%clk 0:00:53]}  Qc7 {[%clk 0:00:39]} 31. b6 {[%clk 0:00:50]}  Qb8 {[%clk 0:00:32]} 32. Red1 {[%clk 0:00:37]}  d5 {[%clk 0:00:32]} 33. R3d2 {[%clk 0:00:15]}  d4 {[%clk 0:00:31]} 34. Qe2 {[%clk 0:00:13]}  Qxb6 {[%clk 0:00:31]} 35. Bg4 {[%clk 0:00:12]}  R8c7 {[%clk 0:00:30]} 36. Qf3 {[%clk 0:00:11]}  g6 {[%clk 0:00:28]} 37. h4 {[%clk 0:00:11]}  Qc6 {[%clk 0:00:16]} 38. h5 {[%clk 0:00:08]}  Kg7 {[%clk 0:00:16]} 39. hxg6 {[%clk 0:00:08]}  fxg6 {[%clk 0:00:17]} 40. Bh3 {[%clk 0:00:07]}  Qxe4 {[%clk 0:00:14]} 41. Qg3 {[%clk 0:00:07]}  Rc3 {[%clk 0:00:14]} 42. Qh2 {[%clk 0:00:06]}  Rc1 {[%clk 0:00:13]} 43. g3 {[%clk 0:00:05]}  Qf3 {[%clk 0:00:08]} 44. Rxc1 {[%clk 0:00:03]}  Rxc1+ {[%clk 0:00:08]} 45. Bf1 {[%clk 0:00:04]}  Ne4 {[%clk 0:00:08]} 46. Rb2 {[%clk 0:00:00]}  d3 {[%clk 0:00:06]} 0-1


[Site "https://www.chess.com"]